bitfinex/quotes_ETHUSD_20250214
["timestamp","ask_amount","ask_price","bid_price","bid_amount"]
[1739530663721,3.69413,2707.0,2706.6,5.38359778]
[1739530663922,3.69413,2707.0,2706.7,0.22485496]
[1739530664699,7.38814,2707.1,2706.7,0.22485496]
[1739530665138,3.6938,2707.3,2706.9,0.8185]
[1739530665316,0.7633,2707.7,2706.9,0.8185]
[1739530665523,3.69378,2707.3,2707.0,0.22409395]
[1739530666307,3.69393,2707.2,2707.0,0.22409395]
[1739530666528,3.69398,2707.1,2707.0,0.22409395]
[1739530667281,3.69399,2707.1,2706.7,0.8185]
[1739530667491,3.69355,2707.5,2707.0,0.22401845]
[1739530667699,3.69365,2707.4,2707.1,0.8185]
[1739530668351,3.69365,2707.4,2707.2,0.22379058]
[1739530671622,3.69371,2707.3,2707.2,0.22379058]
[1739530671821,3.69365,2707.4,2707.2,0.22379058]
[1739530673102,3.69371,2707.3,2707.2,0.22379058]
[1739530673528,5.203346,2707.3,2707.2,0.22379058]
[1739530673841,3.69413,2707.0,2706.8,0.7885]
[1739530674497,3.69426,2706.9,2706.5,0.7885]
[1739530675376,3.69448,2706.8,2706.5,0.7885]
[1739530675783,3.69426,2706.9,2706.5,0.7885]
[1739530675989,3.69454,2706.7,2706.5,0.7885]
[1739530676197,3.69467,2706.6,2706.5,0.7885]
[1739530676539,3.69467,2706.6,2706.1,0.7885]
[1739530676896,3.69467,2706.6,2706.1,1.8505007]
[1739530678434,7.38917,2706.7,2706.1,5.5458107]
[1739530678653,3.69454,2706.7,2706.2,3.69517]
[1739530679072,3.69454,2706.7,2706.2,3.920138]
[1739530679251,3.6944,2706.8,2706.3,4.51231]
[1739530679453,3.6944,2706.8,2706.3,4.73716399]
[1739530680394,3.69432,2706.9,2706.4,4.51222]
[1739530680612,0.7785,2707.1,2706.4,0.8173]
[1739530680893,3.69462,2706.7,2706.5,0.22462601]
[1739530681391,3.69442,2706.8,2706.5,0.22462601]
[1739530681605,3.69419,2707.0,2706.5,0.22462601]
[1739530681757,0.0075,2707.2,2706.5,0.22462601]
[1739530681960,3.69435,2706.9,2706.5,0.22462601]
[1739530682340,7.38871,2706.9,2706.5,0.22462601]
[1739530682542,3.69435,2706.9,2706.5,0.22462601]
[1739530685278,3.69443,2706.8,2706.5,0.22462601]
[1739530686190,3.69461,2706.7,2706.5,0.22462601]
[1739530687232,3.69467,2706.6,2706.5,0.22462601]
[1739530687821,3.69467,2706.6,2706.2,0.7835]
[1739530688000,3.69467,2706.6,2706.5,0.22462601]
[1739530688392,3.69467,2706.6,2706.2,0.7835]
[1739530688617,3.69467,2706.6,2706.5,0.22462601]
[1739530689132,3.69467,2706.6,2706.2,0.7835]
[1739530689428,3.69467,2706.6,2706.5,0.22462601]
[1739530689743,3.69461,2706.7,2706.3,0.22485399]
[1739530690039,3.69461,2706.7,2706.5,0.22462601]
[1739530690204,3.69461,2706.7,2706.5,0.7835]
[1739530690399,3.6944,2706.8,2706.5,0.7835]
[1739530690654,3.6944,2706.8,2706.6,0.22451203]
[1739530692367,3.69435,2706.9,2706.6,0.22451203]
[1739530692558,3.69446,2706.8,2706.6,0.22451203]
[1739530693056,4.139795,2706.9,2706.6,0.22451203]
[1739530693372,3.69452,2706.8,2706.5,0.7835]
[1739530693772,4.139795,2706.9,2706.6,0.22451203]
[1739530693945,3.69453,2706.7,2706.6,0.22451203]
[1739530694559,3.69441,2706.8,2706.6,0.22451203]
[1739530694730,3.69439,2706.8,2706.6,0.22451203]
[1739530695459,3.69448,2706.8,2706.6,0.22451203]
[1739530697584,3.6943,2706.9,2706.6,0.22451203]
[1739530698249,3.69442,2706.8,2706.6,0.22451203]
[1739530699852,3.69453,2706.7,2706.6,0.22451203]
[1739530700960,4.46107,2706.9,2706.4,0.833]
[1739530700961,3.69441,2706.8,2706.4,0.833]
[1739530701159,3.69441,2706.8,2706.6,0.22445164]
[1739530701359,3.69441,2706.8,2706.5,0.22456562]
[1739530701578,3.69441,2706.8,2706.7,0.22433767]
[1739530701776,3.69441,2706.8,2706.6,0.22445164]
[1739530701961,3.69441,2706.8,2706.7,0.22433767]
[1739530702347,3.69441,2706.8,2706.4,0.833]
[1739530702548,3.69439,2706.8,2706.7,0.22433767]
[1739530702875,0.815546,2706.8,2706.7,0.22433767]
[1739530703050,4.46108,2706.9,2706.1,0.833]
[1739530703250,3.69488,2706.5,2706.1,0.833]
[1739530703552,3.69488,2706.5,2706.2,0.2249076]
[1739530703743,3.69501,2706.4,2706.2,0.2249076]
[1739530704139,3.69488,2706.5,2706.2,0.2249076]
[1739530704383,7.38977,2706.5,2706.2,0.2249076]
[1739530704585,3.69488,2706.5,2706.2,0.2249076]
[1739530705290,3.69494,2706.4,2706.2,0.2249076]
[1739530705588,3.69506,2706.4,2706.2,0.2249076]
[1739530707495,3.69467,2706.6,2706.2,0.2249076]
[1739530707786,3.6948,2706.5,2706.2,0.2249076]
[1739530708475,3.69465,2706.7,2706.2,0.2249076]
[1739530708796,3.69421,2707.0,2706.3,0.833]
[1739530708949,3.69432,2706.9,2706.5,0.8189]
[1739530709150,3.69399,2707.1,2706.6,3.69459]
[1739530709354,3.69413,2707.0,2706.6,3.69459]
[1739530709596,3.69413,2707.0,2706.7,0.22457928]
[1739530710393,3.69392,2707.2,2706.8,0.8189]
[1739530710954,3.69392,2707.2,2706.9,0.22433249]
[1739530711354,3.69388,2707.2,2706.9,0.22433249]
[1739530711578,7.38784,2707.2,2706.9,0.22433249]
[1739530711775,3.69388,2707.2,2706.9,0.22433249]
[1739530712166,7.38783,2707.2,2706.9,0.22433249]
[1739530712592,3.69412,2707.0,2706.9,0.22433249]
[1739530713203,3.68656271,2707.0,2706.6,0.8189]
[1739530713361,3.68656271,2707.0,2706.9,0.22419657]
[1739530713559,3.68656271,2707.0,2706.6,0.8189]
[1739530713896,3.68656271,2707.0,2706.9,0.22419657]
[1739530714092,3.68656271,2707.0,2706.6,0.8189]
[1739530714259,3.68656271,2707.0,2706.9,0.22419657]
[1739530714592,4.45592,2707.0,2706.9,0.22419657]
[1739530714751,3.69426,2706.9,2706.6,0.8189]
[1739530714959,3.69426,2706.9,2706.7,0.22433765]
[1739530715569,3.694,2707.1,2706.7,0.22433765]
[1739530716161,3.69439,2706.8,2706.7,0.22433765]
[1739530717474,3.69464,2706.7,2706.2,0.7891]
[1739530717797,3.69464,2706.7,2706.2,4.4843]
[1739530718012,3.69464,2706.7,2706.2,5.5463397]
[1739530718578,3.69439,2706.9,2706.2,5.5462697]
[1739530718904,3.69426,2706.9,2706.4,4.48393]
[1739530719599,3.69423,2707.0,2706.4,4.48393]
[1739530719805,3.69408,2707.1,2706.5,4.48381]
[1739530720097,3.69408,2707.1,2706.6,4.143001]
[1739530720304,3.69396,2707.2,2706.8,0.7891]
[1739530720694,3.69394,2707.2,2706.8,0.7891]
[1739530720876,3.69415,2707.0,2706.6,0.7891]
[1739530721080,3.69428,2706.9,2706.6,0.7891]
[1739530721288,3.69426,2706.9,2706.6,0.7891]
[1739530721494,3.6944,2706.8,2706.6,0.7891]
[1739530723819,3.6944,2706.8,2706.7,0.22432256]
[1739530725823,3.69426,2706.9,2706.7,0.22432256]
[1739530727223,3.69415,2707.0,2706.7,0.22432256]
[1739530727532,3.69439,2706.8,2706.7,0.22432256]
[1739530727737,3.69415,2707.0,2706.7,0.22432256]
[1739530728091,7.38838,2707.0,2706.7,0.22432256]
[1739530728426,7.38837,2707.0,2706.7,0.22432256]
[1739530728615,3.69415,2707.0,2706.7,0.22432256]
[1739530729017,3.69437,2706.9,2706.7,0.22432256]
[1739530732706,3.69415,2707.0,2706.7,0.22432256]
[1739530733053,3.694,2707.1,2706.7,4.38964582]
[1739530733199,3.69425,2707.0,2706.7,0.69513582]
[1739530733399,3.69425,2707.0,2706.7,0.22432256]
[1739530733601,3.694,2707.1,2706.7,0.22432256]
[1739530733805,4.45561,2707.3,2706.7,3.91878256]
[1739530734045,3.69381,2707.3,2706.8,4.45052]
[1739530734201,3.69381,2707.3,2706.9,0.83693026]
[1739530734420,7.38761,2707.3,2706.9,1.06108529]
[1739530734647,3.69375,2707.3,2706.9,1.06108529]
[1739530734845,5.32,2707.4,2706.9,4.75525529]
[1739530735052,9.01358,2707.4,2707.0,0.55114553]
[1739530735420,9.01358,2707.4,2707.1,0.22385543]
[1739530735619,3.69358,2707.4,2707.1,0.22385543]
[1739530735846,0.8249,2707.5,2707.1,0.22385543]
[1739530736048,4.51835,2707.5,2707.1,0.22385543]
[1739530736434,3.6936,2707.4,2707.1,0.22385543]
[1739530736635,8.21188,2707.5,2707.1,0.22385543]
[1739530737124,3.69345,2707.5,2707.1,0.67077153]
[1739530737322,3.69345,2707.5,2707.2,0.7562]
[1739530737864,3.69345,2707.5,2707.3,0.22362759]
[1739530738030,7.38651,2707.7,2707.3,0.22362759]
[1739530738231,3.69336,2707.6,2707.3,0.22362759]
[1739530738868,3.69336,2707.6,2707.2,3.19693703]
[1739530739068,3.69336,2707.6,2707.4,0.22323817]
[1739530739268,3.69336,2707.6,2707.3,0.22335208]
[1739530739472,3.69336,2707.6,2707.5,0.22312427]
[1739530740073,3.69336,2707.6,2707.2,3.19693703]
[1739530740273,3.69336,2707.6,2707.5,0.22312427]
[1739530740437,3.69336,2707.6,2707.2,3.88602873]
[1739530740438,3.69336,2707.6,2707.2,3.19693703]
[1739530740626,3.69312,2707.8,2707.5,0.22312427]
[1739530740830,3.69312,2707.8,2707.2,6.89075703]
[1739530741073,3.69317,2707.7,2707.6,0.22301037]
[1739530741571,3.69317,2707.7,2707.2,3.19693703]
[1739530741742,3.69317,2707.7,2707.2,3.88602073]
[1739530741947,3.69317,2707.7,2707.3,0.22335208]
[1739530742143,3.69318,2707.7,2707.2,3.88602073]
[1739530742379,3.69318,2707.7,2707.2,7.57986073]
[1739530742674,3.69318,2707.7,2707.3,0.22335208]
[1739530743155,3.69318,2707.7,2707.4,0.22323817]
[1739530743362,3.69318,2707.7,2707.2,7.57979073]
[1739530743560,3.69318,2707.7,2707.3,4.67502115]
[1739530745434,4.51789,2707.9,2707.3,4.67502115]
[1739530745979,3.6931,2707.8,2707.3,4.67502115]
[1739530746473,3.69321,2707.7,2707.3,4.67502115]
[1739530746679,3.6931,2707.8,2707.3,4.67502115]
[1739530746905,7.38626,2707.8,2707.4,0.78719582]
[1739530747108,3.69318,2707.7,2707.4,0.78719582]
[1739530747299,3.69318,2707.7,2707.5,0.22312427]
[1739530749112,4.51791,2707.9,2707.5,0.22312427]
[1739530749319,3.69306,2707.8,2707.5,0.22312427]
[1739530749537,8.21092,2707.9,2707.5,0.22312427]
[1739530750619,4.51791,2707.9,2707.5,0.22312427]
[1739530750795,8.21088,2707.9,2707.5,0.22312427]
[1739530750991,4.51787,2707.9,2707.5,0.22312427]
[1739530751174,3.69317,2707.7,2707.5,0.22312427]
[1739530751715,3.69304,2707.8,2707.5,0.22312427]
[1739530752019,3.69304,2707.8,2707.5,0.99922427]
[1739530752378,3.6932,2707.7,2707.5,0.99922427]
[1739530752792,3.6932,2707.7,2707.5,0.22312427]
[1739530753009,3.6932,2707.7,2707.3,0.7761]
[1739530753209,3.6932,2707.7,2707.4,0.22308724]
[1739530753521,7.38618,2707.8,2707.4,0.22308724]
[1739530753728,3.69304,2707.8,2707.4,0.22308724]
[1739530753881,3.69317,2707.7,2707.4,0.22308724]
[1739530754826,3.69304,2707.8,2707.4,0.22308724]
[1739530755183,7.38618,2707.8,2707.4,0.22308724]
[1739530756022,3.69319,2707.7,2707.4,0.22308724]
[1739530759236,3.69298,2707.9,2707.4,3.91663724]
[1739530759585,3.69311,2707.8,2707.5,1.22014387]
[1739530759896,3.69303,2707.8,2707.6,0.22285944]
[1739530760902,3.69305,2707.8,2707.6,0.22285944]
[1739530765198,7.38616,2707.8,2707.6,0.22285944]
[1739530766031,3.69305,2707.8,2707.6,0.22285944]
[1739530766192,3.69317,2707.7,2707.6,0.22285944]
[1739530767343,7.38622,2707.8,2707.6,0.22285944]
[1739530767525,7.38625,2707.8,2707.6,0.22285944]
[1739530768143,3.69317,2707.7,2707.6,0.22285944]
[1739530768795,3.693,2707.9,2707.6,0.22285944]
[1739530768999,3.69317,2707.7,2707.6,0.22285944]
[1739530772552,3.69317,2707.7,2707.3,1.99624387]
[1739530772726,3.69317,2707.7,2707.6,0.22287452]
[1739530772928,3.69303,2707.8,2707.3,1.99624387]
[1739530773252,3.69317,2707.7,2707.3,1.99624387]
[1739530773451,3.69329,2707.7,2707.4,0.22310231]
[1739530773756,3.69335,2707.6,2707.4,0.22310231]
[1739530774544,4.46635,2707.6,2707.4,0.22310231]
[1739530775360,3.69329,2707.7,2707.4,0.22310231]
[1739530775518,7.38658,2707.7,2707.4,0.22310231]
[1739530775965,3.69336,2707.6,2707.4,0.22310231]
[1739530777221,3.69329,2707.7,2707.4,0.22310231]
[1739530777428,7.38657,2707.7,2707.4,0.22310231]
[1739530777971,0.773,2707.8,2707.4,0.22310231]
[1739530778446,3.69319,2707.7,2707.4,0.22310231]
[1739530779141,7.38643,2707.7,2707.4,0.22310231]
[1739530779345,3.69319,2707.7,2707.4,0.22310231]
[1739530779549,7.38648,2707.7,2707.4,0.22310231]
[1739530780150,3.69331,2707.6,2707.4,0.22310231]
[1739530780531,3.69319,2707.7,2707.4,0.22310231]
[1739530781036,3.69319,2707.7,2707.4,0.22310231]
[1739530783278,7.38643,2707.7,2707.4,0.22310231]
[1739530783472,3.69319,2707.7,2707.2,3.69385]
[1739530783682,3.6933,2707.6,2707.5,0.22301484]
[1739530783853,3.6933,2707.6,2707.2,3.69385]
[1739530784181,3.6933,2707.6,2707.5,0.22301484]
[1739530784781,3.6933,2707.6,2707.1,4.46338]
[1739530785096,3.6933,2707.6,2707.2,0.79170896]
[1739530785659,3.6933,2707.6,2707.2,4.48554896]
[1739530788901,3.6933,2707.6,2707.2,0.79170896]
[1739530789074,3.6933,2707.6,2707.2,0.22335657]
[1739530790097,0.8056,2707.4,2707.2,0.22335657]
[1739530790402,4.4993,2707.4,2706.7,4.50064]
[1739530790601,3.6938,2707.3,2706.7,8.1951]
[1739530790769,3.6938,2707.3,2706.8,0.22374063]
[1739530790962,3.69371,2707.3,2706.9,3.69424]
[1739530791161,3.69371,2707.3,2706.8,1.81459632]
[1739530791362,4.4993,2707.4,2706.9,3.69423]
[1739530791563,4.4993,2707.4,2706.9,3.91785668]
[1739530791758,3.694,2707.1,2706.9,0.22362668]
[1739530791991,7.38811,2707.1,2706.7,0.8062]
[1739530792177,3.694,2707.1,2706.7,0.8062]
[1739530792499,3.694,2707.1,2706.8,0.22380478]
[1739530793009,4.4998,2707.0,2706.9,0.22369083]
[1739530793304,5.31918,2707.0,2706.5,0.8062]
[1739530793476,3.6942,2707.0,2706.9,0.22369083]
[1739530793672,3.6942,2707.0,2706.5,4.50093]
[1739530793906,3.6942,2707.0,2706.9,0.22369083]
[1739530794074,3.6941,2707.1,2706.6,3.69465]
[1739530794259,3.69387,2707.2,2706.9,0.22369083]
[1739530794460,4.26583139,2707.2,2706.6,8.60938387]
[1739530794660,7.3878,2707.2,2706.7,0.22391874]
[1739530794899,3.69387,2707.2,2706.8,2.02634387]
[1739530795104,3.6942,2707.0,2706.7,0.22391874]
[1739530795302,3.6942,2707.0,2706.9,0.22401916]
[1739530795504,0.8056,2707.3,2706.8,0.22413311]
[1739530795800,3.69413,2707.0,2706.9,0.22401916]
[1739530796010,3.69413,2707.0,2706.6,5.72100387]
[1739530796308,3.69413,2707.0,2706.7,0.22424707]
[1739530796684,0.8056,2707.3,2706.7,0.22424707]
[1739530796685,3.69396,2707.2,2706.7,0.22424707]
[1739530796859,3.69395,2707.2,2706.7,0.22424707]
[1739530797303,0.8056,2707.3,2706.7,0.22424707]
[1739530797465,3.69406,2707.1,2706.7,0.22424707]
[1739530798007,3.69387,2707.2,2706.7,3.91865707]
[1739530799083,3.69387,2707.2,2706.7,8.57707616]
[1739530799300,0.8056,2707.3,2706.7,4.88263616]
[1739530799505,0.8056,2707.3,2706.8,4.91442387]
[1739530799714,4.49932,2707.3,2706.9,0.8164]
[1739530799913,4.49932,2707.3,2706.9,1.04041916]
[1739530800317,8.19316,2707.3,2706.9,1.04041916]
[1739530800523,4.49932,2707.3,2706.9,1.04041916]
[1739530800970,4.49932,2707.3,2706.9,4.73465916]
[1739530801168,4.49932,2707.3,2706.9,1.04041916]
[1739530801396,3.69353,2707.5,2706.9,1.97974199]
[1739530801675,3.6936,2707.4,2706.9,4.73460916]
[1739530801985,3.69372,2707.3,2706.9,4.73460916]
[1739530803110,3.69372,2707.3,2706.9,1.04041916]
[1739530803534,3.69372,2707.3,2706.9,4.73466916]
[1739530805435,3.69359,2707.4,2706.9,4.73466916]
[1739530805636,3.69359,2707.4,2707.0,0.47346692]
[1739530805929,3.69392,2707.2,2706.9,1.04041916]
[1739530806442,3.69412,2707.0,2706.9,0.22401916]
[1739530806591,4.52322,2707.0,2706.9,0.22401916]
[1739530809563,0.8291,2707.0,2706.9,0.22401916]
[1739530809741,3.69381,2707.3,2706.9,0.22401916]
[1739530809742,3.69394,2707.2,2706.9,0.22401916]
[1739530809946,3.69372,2707.3,2706.9,0.22401916]
[1739530810147,6.1491,2707.5,2706.9,0.81598146]
[1739530810466,6.1491,2707.5,2706.9,0.22401916]
[1739530810467,9.84255,2707.5,2706.9,0.22401916]
[1739530810761,9.84255,2707.5,2707.1,0.781]
[1739530810904,3.69359,2707.4,2707.1,0.781]
[1739530811104,3.69385,2707.2,2706.9,1.00501916]
[1739530811620,3.69401,2707.1,2706.9,0.22401916]
[1739530811823,3.69412,2707.0,2706.9,0.22401916]
[1739530812030,4.432933,2707.0,2706.9,0.22401916]
[1739530812263,5.262033,2707.0,2706.9,0.22401916]
[1739530813064,5.269533,2707.0,2706.9,0.22401916]
[1739530815427,4.52322,2707.0,2706.9,0.22401916]
[1739530815629,3.69388,2707.2,2706.9,0.22401916]
[1739530815961,3.6941,2707.1,2706.9,0.22401916]
[1739530816145,3.69412,2707.0,2706.9,0.22401916]
[1739530816552,3.69392,2707.2,2706.9,0.22401916]
[1739530816934,0.8291,2707.3,2706.9,0.22401916]
[1739530817154,3.69405,2707.1,2706.9,0.22401916]
[1739530817655,3.69405,2707.1,2707.0,0.22060186]
[1739530818038,3.69422,2707.0,2706.6,0.781]
[1739530818217,3.69412,2707.0,2706.7,0.22094372]
[1739530818469,3.69426,2707.0,2706.7,0.22094372]
[1739530819110,3.69405,2707.1,2706.7,0.22094372]
[1739530819373,3.69405,2707.1,2706.7,1.06008109]
[1739530819666,3.69413,2707.0,2706.7,1.06008109]
[1739530820019,3.69396,2707.2,2706.7,1.06008109]
[1739530820269,3.69409,2707.1,2706.7,1.06008109]
[1739530820568,3.69432,2706.9,2706.7,0.22094372]
[1739530822278,3.69408,2707.1,2706.7,0.22094372]
[1739530822652,3.69414,2707.0,2706.7,0.22094372]
[1739530822859,3.69437,2706.9,2706.7,0.22094372]
[1739530823051,3.69414,2707.0,2706.7,0.22094372]
[1739530823746,3.69399,2707.1,2706.7,0.22094372]
[1739530823966,3.69391,2707.2,2706.7,4.75456609]
[1739530824377,4.52295,2707.3,2706.8,3.69436]
[1739530824551,3.6938,2707.3,2706.9,0.815]
[1739530824753,3.6938,2707.3,2706.9,1.03570452]
[1739530824958,9.78015,2707.5,2706.9,1.03570452]
[1739530825163,3.69345,2707.5,2707.0,3.69405]
[1739530825362,3.69332,2707.6,2707.2,0.815]
[1739530825739,3.69332,2707.6,2707.3,0.22024501]
[1739530826143,3.69332,2707.6,2707.2,0.815]
[1739530826341,3.69332,2707.6,2707.4,0.2201311]
[1739530826575,3.69332,2707.6,2707.3,0.22024501]
[1739530826778,3.69332,2707.6,2707.5,0.2200172]
[1739530827243,3.69332,2707.6,2707.2,0.815]
[1739530827443,3.69332,2707.6,2707.3,1.04052801]
[1739530827647,3.69332,2707.6,2707.3,0.22024501]
[1739530828077,3.69332,2707.6,2707.2,4.50883]
[1739530828266,3.69332,2707.6,2707.4,0.2201311]
[1739530828549,0.7667,2707.7,2707.3,0.22024501]
[1739530828753,0.7667,2707.7,2707.5,0.2200172]
[1739530828951,0.7667,2707.7,2707.4,0.2201311]
[1739530829243,0.7667,2707.7,2707.5,0.2200172]
[1739530829455,0.73538114,2707.9,2707.3,3.69365]
[1739530829774,3.69306,2707.8,2707.4,0.6709961]
[1739530830176,3.69318,2707.7,2707.4,0.6709961]
[1739530830376,3.69281,2708.0,2707.5,0.815]
[1739530830563,3.69314,2707.8,2707.5,0.815]
[1739530830744,3.6931,2707.8,2707.6,0.2199033]
[1739530830950,3.69317,2707.7,2707.6,0.2199033]
[1739530831162,4.439297,2707.7,2707.6,0.2199033]
[1739530831371,3.69374,2707.3,2707.0,0.815]
[1739530831577,3.69374,2707.3,2706.8,4.50939]
[1739530831747,0.746127,2707.7,2707.1,0.22026598]
[1739530831748,5.32,2707.6,2707.1,0.22026598]
[1739530831945,5.32,2707.6,2706.9,3.69417]
[1739530831946,3.69352,2707.5,2707.0,3.69406]
[1739530832147,9.01343,2707.6,2707.2,1.03515206]
[1739530832375,3.69348,2707.5,2707.2,0.815]
[1739530832546,9.01343,2707.6,2707.3,0.22003814]
[1739530832747,5.32,2707.6,2707.3,0.22003814]
[1739530832961,5.32,2707.6,2707.4,0.21992423]
[1739530832962,9.01338,2707.6,2707.4,0.21992423]
[1739530833163,3.69338,2707.6,2707.2,0.815]
[1739530833565,3.69338,2707.6,2707.3,0.22003814]
[1739530833758,3.69338,2707.6,2707.2,0.815]
[1739530834093,3.69338,2707.6,2707.3,0.22003814]
[1739530834498,3.69338,2707.6,2707.2,0.815]
[1739530834675,3.69338,2707.6,2707.4,0.21992423]
[1739530834877,3.69338,2707.6,2707.3,0.22003814]
[1739530835095,3.69338,2707.6,2707.5,0.21981033]
[1739530835275,3.69338,2707.6,2707.4,0.21992423]
[1739530835454,3.69338,2707.6,2707.5,0.21981033]
[1739530835657,4.45987,2707.7,2707.2,0.815]
[1739530835858,4.45987,2707.7,2707.3,0.21988017]
[1739530836167,8.15312,2707.7,2707.2,0.815]
[1739530836368,8.15312,2707.7,2707.4,0.21976626]
[1739530836682,3.6933,2707.6,2707.5,0.21965236]
[1739530836990,3.6933,2707.6,2707.2,0.815]
[1739530837295,0.7667,2707.7,2707.3,0.21988017]
[1739530837600,3.69358,2707.4,2707.3,0.21988017]
[1739530837822,3.69357,2707.5,2707.3,0.21988017]
[1739530838123,3.69358,2707.4,2707.0,4.45411]
[1739530838785,0.7667,2707.7,2707.0,0.76]
[1739530838786,3.69381,2707.3,2707.0,0.76]
[1739530838956,3.6939,2707.2,2706.8,3.76]
[1739530839294,3.6939,2707.2,2706.8,0.76]
[1739530841106,3.6939,2707.2,2706.8,4.45439]
[1739530841301,3.69385,2707.2,2706.8,0.76]
[1739530841593,3.69366,2707.4,2706.9,3.69413]
[1739530841780,0.0075,2707.8,2707.1,0.76]
[1739530841781,4.48103,2707.6,2707.1,0.76]
[1739530841972,3.69345,2707.5,2707.1,0.76]
[1739530842374,4.48103,2707.6,2707.1,0.76]
[1739530843003,3.69352,2707.5,2707.2,0.22011068]
[1739530843506,3.6933,2707.6,2707.2,0.22011068]
[1739530843698,3.69365,2707.4,2707.2,0.22011068]
[1739530843901,3.69371,2707.3,2707.2,0.22011068]
[1739530844382,3.69371,2707.3,2706.8,0.76]
[1739530844698,3.69392,2707.2,2706.9,0.22045625]
[1739530845810,3.69399,2707.1,2706.9,0.22045625]
[1739530846513,3.69385,2707.2,2706.9,0.22045625]
[1739530847505,4.48129,2707.4,2706.9,0.22045625]
[1739530847814,3.6938,2707.3,2706.9,0.22045625]
[1739530848777,5.32,2707.6,2707.1,3.69398]
[1739530849075,9.01339,2707.6,2707.2,0.22029876]
[1739530849584,3.69344,2707.5,2707.2,0.22029876]
[1739530849994,3.69344,2707.5,2707.0,4.45408]
[1739530850192,7.38699,2707.5,2707.1,0.22037131]
[1739530850478,3.69344,2707.5,2707.1,0.22037131]
[1739530851685,3.69325,2707.7,2707.2,3.6938]
[1739530851885,3.69304,2707.8,2707.3,3.69363]
[1739530852107,3.6932,2707.7,2707.4,0.7851]
[1739530852326,3.69334,2707.6,2707.4,0.7851]
[1739530852503,3.69334,2707.6,2707.5,0.21988932]
[1739530854923,3.6932,2707.7,2707.5,0.21988932]
[1739530855803,3.6933,2707.6,2707.5,0.21988932]
[1739530856831,3.69364,2707.4,2707.2,0.7851]
[1739530857020,3.69356,2707.5,2707.3,0.22011713]
[1739530857330,3.69356,2707.5,2707.2,0.7851]
[1739530857538,3.69356,2707.5,2707.4,0.22000322]
[1739530858052,3.69356,2707.5,2707.2,0.7851]
[1739530858328,3.69367,2707.4,2707.3,0.22011713]
[1739530859013,8.17912,2707.5,2707.0,4.47915]
[1739530859221,3.69356,2707.5,2707.1,0.22034498]
[1739530859702,0.792,2707.7,2707.1,0.22034498]
[1739530859935,3.69323,2707.7,2707.3,0.7851]
[1739530860331,3.69323,2707.7,2707.4,0.22000322]
[1739530860533,6.112,2707.9,2707.4,0.22000322]
[1739530860750,4.48544,2707.5,2707.4,0.22000322]
[1739530861168,4.48544,2707.5,2707.1,1.0339]
[1739530861371,3.69344,2707.5,2707.4,0.22000322]
[1739530861583,7.38699,2707.5,2707.1,1.0339]
[1739530861786,3.69344,2707.5,2707.4,0.21990919]
[1739530862233,3.69344,2707.5,2707.1,1.0339]
[1739530862592,3.69344,2707.5,2707.2,0.22013702]
[1739530863324,3.69358,2707.4,2707.2,0.22013702]
[1739530863578,3.69345,2707.5,2707.2,0.22013702]
[1739530863778,3.69338,2707.6,2707.2,0.22013702]
[1739530864018,3.69338,2707.6,2707.2,0.71492672]
[1739530865535,3.69326,2707.7,2707.2,4.40869672]
[1739530865733,3.69326,2707.7,2707.3,3.69371]
[1739530866228,3.69326,2707.7,2707.4,0.21990919]
[1739530866426,3.69326,2707.7,2707.2,4.1886197]
[1739530866628,3.69326,2707.7,2707.3,0.2200231]
[1739530866840,3.69326,2707.7,2707.2,4.1886197]
[1739530867126,3.69326,2707.7,2707.3,0.2200231]
[1739530867300,9.80499,2707.9,2707.3,3.9136331]
[1739530867506,3.69299,2707.9,2707.4,4.52287]
[1739530867704,3.69299,2707.9,2707.4,1.04920919]
[1739530868029,3.69299,2707.9,2707.5,3.69344]
[1739530868333,3.69299,2707.9,2707.6,0.21962121]
[1739530868829,4.71012,2708.1,2707.6,0.21962121]
[1739530869013,3.94232,2708.1,2707.7,0.8293]
[1739530869218,3.94232,2708.1,2707.8,0.21939345]
[1739530870034,3.94227,2708.1,2707.8,0.21939345]
[1739530870219,0.2496,2708.1,2707.8,3.13536862]
[1739530870438,0.2496,2708.1,2707.8,2.66117227]
[1739530870930,0.2496,2708.1,2707.8,6.35420227]
[1739530871520,0.2496,2708.1,2707.9,3.69288]
[1739530871720,0.2496,2708.1,2707.9,1.08764823]
[1739530871908,0.2496,2708.1,2708.0,0.21912812]
[1739530872849,0.2496,2708.1,2708.0,1.04842812]
[1739530876596,0.2496,2708.1,2708.0,0.21912812]
[1739530876800,3.94222,2708.1,2708.0,0.21912812]
[1739530877002,4.782473,2708.1,2707.5,3.27107882]
[1739530877198,3.69276,2708.0,2707.6,0.21906095]
[1739530878998,3.94222,2708.1,2707.6,3.91236095]
[1739530881039,0.2496,2708.1,2707.6,0.21906095]
[1739530881244,0.2496,2708.1,2707.7,3.69309]
[1739530881419,0.2496,2708.1,2707.8,0.21893844]
[1739530882058,3.94223,2708.1,2707.8,1.04913844]
[1739530882269,0.2496,2708.1,2707.8,1.04913844]
[1739530883964,4.49819,2707.9,2707.8,0.21893844]
[1739530884167,5.874246,2707.9,2707.8,0.21893844]
[1739530884367,5.874246,2707.9,2707.3,3.69363]
[1739530884554,4.49819,2707.9,2707.3,3.69363]
[1739530884754,3.6931,2707.8,2707.4,0.21940153]
[1739530885528,0.8053,2707.9,2707.4,0.21940153]
[1739530885529,4.49831,2707.9,2707.4,3.91291153]
[1739530885772,0.8053,2707.9,2707.5,3.69343]
[1739530885942,3.69304,2707.8,2707.4,0.21940153]
[1739530886269,3.69304,2707.8,2707.5,0.21938162]
[1739530886457,3.69304,2707.8,2707.3,3.69363]
[1739530886656,3.69304,2707.8,2707.4,0.21949553]
[1739530887175,3.69317,2707.7,2707.4,0.21949553]
[1739530887465,3.69337,2707.6,2707.4,0.21949553]
[1739530887828,3.69337,2707.6,2707.1,3.9427]
[1739530887829,0.8053,2707.6,2707.1,0.2488]